Cogmind - Beta 15 @@@ ROGUE MODE // 2025.06.14 @ 16:52:50 Player: writers.room Result: Self-destructed Performance ------------- Evolutions (1) 500 Regions Visited (4) 800 Robots Destroyed (7) 35 Value Destroyed (131) 131 Prototype IDs (0) 0 Alien Tech Used (0) 0 Bonus (0) 0 TOTAL SCORE: 1466 Bonus ------- None Cogmind --------- Core Integrity 363/400 Matter 291/300 Energy 100/100 System Corruption 0% Temperature Cool (0) Movement Walking (120) Location -9/Mines Parts ------- > --- POWER (1) -------- (None) > --- PROPULSION (3) --- Aluminum Leg Aluminum Leg > --- UTILITY (3) ------ Targeting Computer Hardened Light Armor Plating > --- WEAPON (2) ------- Light Assault Rifle Autogun > --- INVENTORY (5) ---- Autogun Autogun Peak State ------------ > --- POWER ------------ Light Nuclear Core > --- PROPULSION ------- Aluminum Leg Aluminum Leg > --- UTILITY ---------- Targeting Computer Hardened Light Armor Plating > --- WEAPON ----------- Autogun Autogun > --- INVENTORY -------- Autogun Autogun [Rating: 12] Favorites ----------- Power Light Nuclear Core Engine Light Ion Engine Power Core Light Nuclear Core Propulsion Aluminum Leg Leg Aluminum Leg Utility Targeting Computer Processor Targeting Computer Protection Hardened Light Armor Plating Weapon Autogun Ballistic Gun Autogun Build | -11 -10 -10 -9 -9 ------- Run | Yrd Mat Min Mat Min Slots Evolved 2 | . . . 2 . Power . | . . . . . Propulsion 1 | . . . 1 . Utility 1 | . . . 1 . Weapon . | . . . . . Parts Attached 11 | 5 4 . . 2 Power 3 | 2 1 . . . Engine 2 | 2 . . . . Core 1 | . 1 . . . Reactor . | . . . . . Propulsion 2 | 2 . . . . Treads . | . . . . . Leg 2 | 2 . . . . Wheel . | . . . . . Hover . | . . . . . Flight . | . . . . . Utility 2 | . 1 . . 1 Device . | . . . . . Storage . | . . . . . Processor 1 | . 1 . . . Hackware . | . . . . . Protection 1 | . . . . 1 Artifact . | . . . . . Weapon 4 | 1 2 . . 1 Energy Gun . | . . . . . Energy Cannon . | . . . . . Ballistic Gun 4 | 1 2 . . 1 Ballistic Cannon . | . . . . . Launcher . | . . . . . Special Weapon . | . . . . . Impact Weapon . | . . . . . Slashing Weapon . | . . . . . Piercing Weapon . | . . . . . Special Melee Weapon . | . . . . . Unidentified Prototypes . | . . . . . Parts Lost 2 | . . . . 2 Power 1 | . . . . 1 Propulsion . | . . . . . Utility . | . . . . . Weapon 1 | . . . . 1 Highest Loss Streak 2 | . . . . 2 To Critical Strikes . | . . . . . Average Backups 1 | . 1 2 2 2 Power . | . . . . . Propulsion . | . . . . . Utility . | . . . . . Weapon 1 | . 1 2 2 2 Tool/Special . | . . . . . Unused Backups 2 | . . . . 2 Power . | . . . . . Propulsion . | . . . . . Utility . | . . . . . Weapon 2 | . . . . 2 Tool/Special . | . . . . . Average Slot Usage (%) 75 | . 72 85 66 69 Engine 2 | . 8 . . . Core 9 | . 5 14 11 6 Leg 26 | . 28 28 22 22 Processor 9 | . 3 14 11 11 Protection 1 | . . . . 9 Ballistic Gun 25 | . 26 28 22 20 Peak Build Rating 12 | 4 10 10 10 12 Average Rating 8 | 3 7 10 10 9 On Entrance 6 | . 4 10 10 10 Naked Turns . | . . . . . Heaviest Build 16 | 6 11 11 11 16 Greatest Support 20 | 20 20 20 20 20 Greatest Overweight (x) 3 | 1 . 3 . . Average Overweight (x) . | . . . . . Largest Inventory Capacity 5 | 5 5 5 5 5 Average Capacity 5 | 5 5 5 5 5 Most Carried 2 | 2 2 2 2 2 Average Carried 1 | . 1 2 2 2 Final Capacity 5 | 5 5 5 5 5 Final Carried 2 | . 2 2 2 2 Class Distribution -------------------- 100% | Mutant Dominant Class ---------------- Mutant | -10/Materials Mutant | -10/Mines Mutant | -9/Materials Mutant | -9/Mines Resources | -11 -10 -10 -9 -9 ----------- Run | Yrd Mat Min Mat Min Matter Collected 421 | 187 95 59 . 80 Remotely . | . . . . . Salvage Created 163 | . 95 . . 68 Parts 9 | . 3 . . 6 Haulers Intercepted . | . . . . . Recyclers Shooed . | . . . . . Parts Field Recycled . | . . . . . Retrieved Matter . | . . . . . Parts Self-Destructed . | . . . . . Prevented . | . . . . . Kills | -11 -10 -10 -9 -9 ------- Run | Yrd Mat Min Mat Min Combat Hostiles Destroyed 7 | . 2 . . 5 Guns 7 | . 2 . . 5 Classes Destroyed 2 | . 1 . . 1 Swarmer 5 | . . . . 5 Grunt 2 | . 2 . . . Best Kill Streak 4 | . 2 . . 4 Combat Bots Only 4 | . 2 . . 4 Max Kills in Single Turn 1 | . 1 . . 1 Gunslinging . | . . . . . Exploded . | . . . . . Melee . | . . . . . Uniques/NPCs Destroyed . | . . . . . Combat | -11 -10 -10 -9 -9 -------- Run | Yrd Mat Min Mat Min Hostile Shots Fired 65 | . 11 1 8 45 Missed 21 | . 1 1 4 15 Hits 44 | . 10 . 4 30 Projectile 44 | . 10 . 4 30 Critical Strikes 1 | . 1 . . . Damage Taken 431 | . 139 . 56 236 Core 37 | . . . 13 24 Absorbed by Shields . | . . . . . Core Remaining (%) 100 | 100 . 100 . . Volleys Fired 22 | . 7 . 1 14 Largest 2 | . 2 . 2 2 Hottest 46 | . 46 . 46 46 Shots Fired 34 | . 14 . 2 18 Gun 34 | . 14 . 2 18 Cannon . | . . . . . Launcher . | . . . . . Special . | . . . . . Kinetic 34 | . 14 . 2 18 Thermal . | . . . . . Explosive . | . . . . . Electromagnetic . | . . . . . Robot Hit Streak 7 | . 5 . 7 4 Robot Miss Streak 2 | . 1 . . 2 Penetration Max . | . . . . . Secondary Targets . | . . . . . Shots Hit Robots 22 | . 10 . 2 10 Core Hits 8 | . 3 . . 5 Critical Kills . | . . . . . Critical Parts Destroyed . | . . . . . Critical Strikes . | . . . . . Melee Attacks . | . . . . . Impact . | . . . . . Slashing . | . . . . . Piercing . | . . . . . Sneak Attacks . | . . . . . Combat Hostiles . | . . . . . Follow-up Attacks . | . . . . . Damage Inflicted 354 | . 152 . 29 173 Guns 354 | . 152 . 29 173 Cannons . | . . . . . Explosions . | . . . . . Melee . | . . . . . Ramming . | . . . . . Kinetic 354 | . 152 . 29 173 Thermal . | . . . . . Explosive . | . . . . . Electromagnetic . | . . . . . Impact . | . . . . . Slashing . | . . . . . Piercing . | . . . . . Highest Corruption . | . . . . . Average Corruption . | . . . . . Corruption Purged . | . . . . . Corruption Blocked . | . . . . . Overload Shots . | . . . . . Overflow Damage . | . . . . . Projectiles . | . . . . . Explosions . | . . . . . Melee . | . . . . . Knockbacks . | . . . . . Impact . | . . . . . Kinetic . | . . . . . Secondary . | . . . . . Self-Inflicted Damage . | . . . . . Shots . | . . . . . Rammed . | . . . . . Targets Rammed 1 | . . . . 1 Kicked 1 | . . . . 1 Crushed . | . . . . . Highest Temperature 81 | . 81 . 4 28 Average Temperature 32 | . 46 . 3 15 Received Heat Transfer 114 | . 99 . 15 . Siege Activations . | . . . . . Martial Activations . | . . . . . Shielding Activations . | . . . . . Robots Disrupted . | . . . . . Combat Hostiles . | . . . . . Robots Corrupted . | . . . . . Combat Hostiles . | . . . . . Parts Fried . | . . . . . Impact Corruptions . | . . . . . Robots Melted . | . . . . . Combat Hostiles . | . . . . . Parts Melted . | . . . . . Heat Transferred . | . . . . . Parts Sabotaged . | . . . . . Parts Stolen . | . . . . . Parts Stripped . | . . . . . Power Chain Reactions . | . . . . . Alert | -11 -10 -10 -9 -9 ------- Run | Yrd Mat Min Mat Min Maximum Alert Level . | . . . . . Low Security (%) 100 | 100 100 100 100 100 Level 1 . | . . . . . Level 2 . | . . . . . Level 3 . | . . . . . Level 4 . | . . . . . Level 5 . | . . . . . High Security . | . . . . . Max Security . | . . . . . Peak Influence 105 | . 50 30 4 105 Initial 1 | . . 1 . . Average 9 | . 9 3 . 32 Influence Increases 254 | . 65 30 4 155 Destroy 0b10 Robot/C 140 | . 40 . . 100 Destroy Leader 20 | . 10 . . 10 Successful Hack 4 | . . . 4 . Lose Combat Pursuer 90 | . 15 30 . 45 Influence Decreases 149 | . 60 35 4 50 Entered New Map 4 | . . 4 . . Time Decay 135 | . 60 31 4 40 Lost Part 10 | . . . . 10 Squads Dispatched 2 | . . . 2 . Investigation . | . . . . . Extermination . | . . . . . Reinforcement 2 | . . . 2 . Assault . | . . . . . Garrison . | . . . . . Intercept . | . . . . . Searches Triggered . | . . . . . Construction Impeded . | . . . . . Haulers Reinforced . | . . . . . Active Scanning Responses . | . . . . . Cargo Convoy Interrupts . | . . . . . Stealth | -11 -10 -10 -9 -9 --------- Run | Yrd Mat Min Mat Min Distress Signals 4 | . 3 . 1 . Communications Jammed . | . . . . . Distress Signals . | . . . . . Times Spotted 24 | . 6 2 7 9 Peak Tracking Total 7 | . 4 2 7 4 Tactical Retreats 3 | . 1 1 . 1 Traps | -11 -10 -10 -9 -9 ------- Run | Yrd Mat Min Mat Min Traps Triggered . | . . . . . Indirectly . | . . . . . Trap Hack Attempts . | . . . . . Triggered . | . . . . . Disarmed . | . . . . . Reprogrammed . | . . . . . Reused . | . . . . . Traps Extracted . | . . . . . Installed . | . . . . . Triggered . | . . . . . Machines | -11 -10 -10 -9 -9 ---------- Run | Yrd Mat Min Mat Min Machines Disabled . | . . . . . Max in Single Turn . | . . . . . Machines Repaired . | . . . . . Machines Dismantled . | . . . . . Machines Sabotaged . | . . . . . Overloaded Fab Kills . | . . . . . Hacking | -11 -10 -10 -9 -9 --------- Run | Yrd Mat Min Mat Min Machines Accessed 1 | . . . 1 . Terminals 1 | . . . 1 . Fabricators . | . . . . . Repair Stations . | . . . . . Recycling Units . | . . . . . Scanalyzers . | . . . . . Garrison Access . | . . . . . Total Hacks 1 | . . . 1 . Successful 1 | . . . 1 . Failed . | . . . . . Catastrophic . | . . . . . Database Lockouts . | . . . . . Manual . | . . . . . Terminals 1 | . . . 1 . Fabricators . | . . . . . Repair Stations . | . . . . . Recycling Units . | . . . . . Scanalyzers . | . . . . . Garrison Access . | . . . . . Terminal Hacks 1 | . . . 1 . Locate Traps 1 | . . . 1 . Fabricator Hacks . | . . . . . Repair Station Hacks . | . . . . . Recycling Unit Hacks . | . . . . . Scanalyzer . | . . . . . Garrison Access Hacks . | . . . . . Unauthorized Hacks . | . . . . . Terminals . | . . . . . Fabricators . | . . . . . Repair Stations . | . . . . . Recycling Units . | . . . . . Scanalyzers . | . . . . . Garrison Access . | . . . . . Data Cores Recovered . | . . . . . Used . | . . . . . Hacking Detections . | . . . . . Full Trace Events . | . . . . . Feedback Events . | . . . . . Feedback Blocked . | . . . . . Robot Schematics Acquired . | . . . . . Robots Built . | . . . . . Authchips . | . . . . . Time . | . . . . . Total Robot Build Rating . | . . . . . Part Schematics Acquired . | . . . . . Parts Built . | . . . . . Authchips . | . . . . . Time . | . . . . . Total Part Build Rating . | . . . . . Parts Repaired . | . . . . . Time . | . . . . . Parts Recycled . | . . . . . Recycled Matter . | . . . . . Retrieved Matter . | . . . . . Retrieved Components . | . . . . . Parts Scanalyzed . | . . . . . Part Schematics Acquired . | . . . . . Parts Damaged . | . . . . . Bothacking | -11 -10 -10 -9 -9 ------------ Run | Yrd Mat Min Mat Min Used RIF Installer . | . . . . . Robots Hacked . | . . . . . Non-combat . | . . . . . Combat . | . . . . . Robot Hacks Applied . | . . . . . Relay Couplers Released . | . . . . . Fabnet Peak Effective % . | . . . . . Robots Rewired . | . . . . . Allies Hacked . | . . . . . Hacks Repelled . | . . . . . Allies | -11 -10 -10 -9 -9 -------- Run | Yrd Mat Min Mat Min Total Allies . | . . . . . Largest Group . | . . . . . Highest-Rated Group . | . . . . . Highest-Rated Ally . | . . . . . Total Orders . | . . . . . Ally Attacks . | . . . . . Total Damage . | . . . . . Kills . | . . . . . Allies Corrupted . | . . . . . Allies Melted . | . . . . . Intel | -11 -10 -10 -9 -9 ------- Run | Yrd Mat Min Mat Min Active Infowar (turns) . | . . . . . Robot Analysis Total . | . . . . . Derelict Logs Recovered 2 | . . 2 . . Drone Launches . | . . . . . Drone Recoveries . | . . . . . Exploration | -11 -10 -10 -9 -9 ------------- Run | Yrd Mat Min Mat Min Turns Passed 938 | 93 291 300 103 151 Spaces Moved 732 | 82 218 250 84 98 Core 23 | 22 . 1 . . Treads . | . . . . . Legs 709 | 60 218 249 84 98 Wheels . | . . . . . Hover . | . . . . . Flight . | . . . . . Fastest Speed 50 | 50 120 120 120 120 Average Speed 118 | 102 120 120 120 120 Slowest Speed 200 | 120 120 200 120 120 Overloaded Moves . | . . . . . Propulsion Burnouts . | . . . . . Robots Hopped . | . . . . . Potential Cave-ins . | . . . . . Cave-ins Triggered . | . . . . . Exploration Rate (%) 28 | 5 26 71 17 23 Regions Visited 4 Branch Regions 2 Pre-discovered Areas 1 | . . 1 . . Known Exits Taken . | . . . . . Unknown Exits Taken 4 | 1 1 1 1 . Scrap Searched 2 | . . 1 . 1 Spaces Dug . | . . . . . Terrain Destroyed . | . . . . . Melee . | . . . . . Projectile . | . . . . . AOE . | . . . . . Terrain Rammed . | . . . . . Walls Destroyed . | . . . . . Machines Disabled . | . . . . . Actions | -11 -10 -10 -9 -9 --------- Run | Yrd Mat Min Mat Min Total 772 | 90 234 249 84 115 Wait 3 | . 3 . . . Move 728 | 81 217 249 83 98 Hop . | . . . . . Pick Up 4 | 2 2 . . . Fast Attach 7 | 3 2 . . 2 Attach 2 | 2 . . . . Detach 1 | 1 . . . . Swap 2 | . 2 . . . Drop 2 | 1 1 . . . Fire 22 | . 7 . 1 14 Melee . | . . . . . Ram . | . . . . . Kick 1 | . . . . 1 Crush . | . . . . . Escape Stasis . | . . . . . Rewire . | . . . . . Trap . | . . . . . Miscellaneous . | . . . . . Route ------- -11/Scrapyard -10/Materials -10/Mines -9/Materials -9/Mines History --------- Turn | Location | Event 6 | -11/Scrapyard | Discovered new exit (range 16) 94 | -11/Scrapyard | Entered Materials 305 | -10/Materials | Build established: Mutant 355 | -10/Materials | Discovered new exit (range 15) 385 | -10/Materials | Entered Mines 386 | -10/Mines | Learned location of Storage (-9) 408 | -10/Mines | Learned Materials terminal intel 554 | -10/Mines | Learned Materials terminal intel 673 | -10/Mines | Discovered new exit (range 8) 685 | -10/Mines | Entered Materials 685 | -9/Materials | Evolved 2 slots: Propulsion x1, Utility x1 686 | -9/Materials | Loaded intel: 12 terminal locations 768 | -9/Materials | Discovered new exit (range 16) 788 | -9/Materials | Entered Mines 818 | -9/Mines | Met a Derelict bent on vengeance 939 | -9/Mines | Self-destructed Last Messages --------------- 00862_ K-01 Serf collects debris. 00866_ Lgt. Nuclear Core destroyed. 00866_ K-01 Serf collects debris. 00867_ S-10 Pest destroyed. 00871_ K-01 Serf collects debris. 00874_ S-10 Pest destroyed. 00877_ K-01 Serf collects debris. 00877_ Acquired Lgt. Assault Rifle. 00878_ Acquired 10 matter. 00880_ Acquired 17 matter. 00881_ K-01 Serf collects debris. 00881_ Acquired 12 matter. 00883_ K-01 Serf collects debris. 00888_ R-06 Scavenger collects Flight Unit. 00888_ Acquired 18 matter. 00890_ K-01 Serf collects debris. 00892_ R-06 Scavenger collects Flight Unit. 00893_ K-01 Serf collects debris. 00908_ Kicked K-01 Serf. 00931_ S-10 Pest destroyed. Map ----- +----------------------------------------------------+ | ?????????????????? ??????????# #???????### | | ???????????????? #???????### #####?## # | | ???????????????? #?????## # ### # | | ????????????????? # #### # | | ????????????????? ### | | ????????????????? ##?? | | ????????????????? ##### ##??? | | ?????????????????? ### ???## #???# | | ??????????????????????# ##??## ##?# | | ??????????????????????# #???## ## | | ??????????????????????# ###### | | ???????????????????????# ## | | ???????????????????????# ## ##? | | ???????????????????????# ##### #######?? | | ???????????????????????# #???######???????? | | ???????????????????????## ##????????????????? | | ????????????????????????# #?????????????????? | | ????????????????????????# #?????????????????? | | ????????????????????????# ##### #?????? | | ????????????????????????# """????????? | | ????????????????????????# ##### """????????? | | ???????????????????###### #?????????????????? | | ???????????????????#=[ #?????????????????? | | ???????????????????#s######?????????????????? | | ???????????????????#=#??????????????????????? | | ???????????????????#@#??????????????????????? | | ???????????????????# #??????????????????????? | | ???????????????????# #??????????????????????? | | ?????????????????? ?????????????????????? | | ?????????????????###### #???????????????????? | | ????????????????????????#???????????????????? | | ????????????????????????????????????????????? | | ????????????????????????????????????????????? | | ????????????????????????????????????????????? | | ????????????????????????????????????????????? | | ????????????????????????????????????????????? | | ????????????????????????????????????????????? | | ????????????????????????????????????????????? | | ????????????????????????????????????????????? | | ????????????????????????????????????????????? | | | | | | | | | | | | | | | | | | | | | +----------------------------------------------------+ Best States ------------- Heat Dissipation 28 Energy Generation 14 Energy Capacity 250 Matter Stores 300 Matter Capacity 300 Sight Range 16 Terrain Scan Density 10 Armor Coverage 150 Evasion (%) 55 Targeting Accuracy 5 Item Schematics ----------------- None Robot Schematics ------------------ None Fabricated ------------ Nothing Repaired ---------- Nothing Alien Tech Used ----------------- None Achievements -------------- None Challenges ------------ None Game ------ Seed FusionScrapDevice Manual? 0 Play Time 00:06:58 Cumulative 39.5 hours Start 2025.06.13 @ 22:38:14 End 2025.06.14 @ 16:52:50 Sessions 3 Manual Loads 0 Difficulty Rogue Special Mode None Game No. 116 Rogue 76 Adventurer 14 Explorer 26 Win Type - Total 0 Types 0/0/0/0/0/0/0/0/0/0 Lore% 15 Gallery% 30 Achievement% 31 Wizard Run 0 Options --------- Layout 0 ASCII 0 Keyboard 1 Movement Vi Keybinds 0 Fullscreen 1 Font 18/SmallcapsGlow Map View 76x50 Zoom Use 0% Tactical HUD 1 Map Filters NONE Filters NONE Steam 1 RUN: 605aea5c-0d9b-41f6-9b20-dbc8d4471e23